Cogmind - Beta 10.2 @@@ ROGUE MODE // 2022.03.15 @ 21:45:57 Player: Yanche Result: Destroyed by as-98874 with Assembled F-torch Performance ------------- Evolutions (0) 0 Regions Visited (3) 600 Robots Destroyed (8) 40 Value Destroyed (172) 172 Prototype IDs (0) 0 Alien Tech Used (0) 0 Bonus (54) 54 TOTAL SCORE: 866 Bonus ------- Follower Combat Kills 54 Cogmind --------- Core Integrity 0/250 Matter 300/300 Energy 99/100 System Corruption 13% Temperature Cool (92) Movement Rolling (110) Ox3 Location -10/Exiles Parts ------- > --- POWER (1) -------- (None) > --- PROPULSION (2) --- Wheel > --- UTILITY (2) ------ High-capacity Storage Unit Targeting Computer > --- WEAPON (2) ------- (None) > --- INVENTORY (12) --- Ion Engine Terrain Scan Processor Core Shielding Particle Gun Assault Rifle Heavy Assault Rifle Grenade Launcher Peak State ------------ > --- POWER ------------ Ion Engine > --- PROPULSION ------- Wheel Compact Wheel > --- UTILITY ---------- High-capacity Storage Unit Improved Terrain Scanner > --- WEAPON ----------- EM Pulse Gun Medium Laser > --- INVENTORY -------- Ion Engine Wheel Small Storage Unit Terrain Scan Processor Targeting Computer EM Pulse Gun Beam Rifle Grenade Launcher [Rating: 9] Favorites ----------- Power Ion Engine Engine Ion Engine Propulsion Compact Wheel Wheel Compact Wheel Utility Improved Terrain Scanner Device Improved Terrain Scanner Storage High-capacity Storage Unit Processor Targeting Computer Weapon EM Pulse Gun Energy Gun EM Pulse Gun Slashing Weapon Mining Claw Build | -11 -10 -10 -10 ------- Run | Scr Mat Min Exi Slots Evolved . | . . . . Power . | . . . . Propulsion . | . . . . Utility . | . . . . Weapon . | . . . . Parts Attached 14 | 7 . 7 . Power 1 | 1 . . . Engine 1 | 1 . . . Core . | . . . . Reactor . | . . . . Propulsion 4 | 2 . 2 . Treads . | . . . . Leg . | . . . . Wheel 4 | 2 . 2 . Hover . | . . . . Flight . | . . . . Utility 4 | 2 . 2 . Device 1 | 1 . . . Storage 2 | 1 . 1 . Processor 1 | . . 1 . Hackware . | . . . . Protection . | . . . . Artifact . | . . . . Weapon 5 | 2 . 3 . Energy Gun 4 | 2 . 2 . Energy Cannon . | . . . . Ballistic Gun . | . . . . Ballistic Cannon . | . . . . Launcher . | . . . . Special Weapon . | . . . . Impact Weapon . | . . . . Slashing Weapon 1 | . . 1 . Piercing Weapon . | . . . . Special Melee Weapon . | . . . . Unidentified Prototypes . | . . . . Parts Lost 9 | . . 5 4 Power 1 | . . . 1 Propulsion 3 | . . 2 1 Utility 1 | . . 1 . Weapon 4 | . . 2 2 Highest Loss Streak 4 | . . 4 4 Average Slot Usage (%) 99 | . 100 99 98 Engine 14 | . 14 14 14 Wheel 27 | . 28 27 26 Device 8 | . 14 10 . Storage 14 | . 14 14 14 Processor 5 | . . 3 14 Energy Gun 26 | . 28 25 28 Slashing Weapon 1 | . . 2 . Naked Turns . | . . . . Heaviest Build 42 | 14 14 42 42 Greatest Support 32 | 32 32 32 20 Greatest Overweight (x) 3 | . . 2 3 Average Overweight (x) . | . . . 2 Largest Inventory Capacity 12 | 6 6 12 12 Average Capacity 9 | 4 6 9 12 Most Carried 12 | 3 6 12 7 Average Carried 6 | 1 5 7 7 Final Capacity 12 | 6 6 12 12 Final Carried 7 | 3 6 7 7 Class Distribution -------------------- 100% | Mutant Dominant Class ---------------- Mutant | -10/Materials Mutant | -10/Mines Mutant | -10/Exiles Resources | -11 -10 -10 -10 ----------- Run | Scr Mat Min Exi Matter Collected 330 | 270 . 60 . Remotely . | . . . . Salvage Created 383 | 99 16 252 16 Parts 19 | 5 1 13 . Haulers Intercepted . | . . . . Recyclers Shooed . | . . . . Parts Field Recycled . | . . . . Retrieved Matter . | . . . . Parts Self-Destructed . | . . . . Prevented . | . . . . Kills | -11 -10 -10 -10 ------- Run | Scr Mat Min Exi Combat Hostiles Destroyed 4 | . . 3 1 Guns 3 | . . 2 1 Classes Destroyed 7 | 2 1 3 1 Worker 1 | . . 1 . Tunneler 1 | 1 . . . Recycler 2 | 1 . 1 . Operator 1 | . 1 . . Grunt 2 | . . 2 . Sentry 1 | . . 1 . Assembled 1 | . . . 1 Best Kill Streak 2 | 2 1 2 1 Combat Bots Only 1 | . . 1 1 Max Kills in Single Turn 1 | 1 1 1 1 Gunslinging . | . . . . Exploded . | . . . . Melee . | . . . . Uniques/NPCs Destroyed . | . . . . Combat | -11 -10 -10 -10 -------- Run | Scr Mat Min Exi Damage Taken 904 | . 20 404 480 Core 251 | . 6 74 171 Absorbed by Shields . | . . . . Core Remaining (%) 100 | 100 . . . Volleys Fired 26 | 2 2 18 4 Largest 2 | 2 2 2 2 Hottest 96 | 90 90 96 96 Shots Fired 51 | 4 4 35 8 Gun 51 | 4 4 35 8 Cannon . | . . . . Launcher . | . . . . Special . | . . . . Kinetic . | . . . . Thermal 24 | 2 2 17 3 Explosive . | . . . . Electromagnetic 27 | 2 2 18 5 Robot Hit Streak 11 | 2 5 11 2 Robot Miss Streak 4 | 1 . 2 4 Penetration Max . | . . . . Secondary Targets . | . . . . Shots Hit Robots 36 | 2 3 27 4 Core Hits 13 | 2 1 8 2 Critical Hits . | . . . . Critical Kills . | . . . . Critical Parts Destroyed . | . . . . Melee Attacks 9 | . . 9 . Impact . | . . . . Slashing 9 | . . 9 . Piercing . | . . . . Sneak Attacks . | . . . . Combat Hostiles . | . . . . Follow-up Attacks . | . . . . Damage Inflicted 408 | 27 45 293 43 Guns 408 | 27 45 293 43 Cannons . | . . . . Explosions . | . . . . Melee . | . . . . Ramming . | . . . . Kinetic . | . . . . Thermal 168 | . 12 127 29 Explosive . | . . . . Electromagnetic 240 | 27 33 166 14 Impact . | . . . . Slashing . | . . . . Piercing . | . . . . Highest Corruption 13 | . . 13 13 Average Corruption 13 | . . 13 13 Corruption Purged . | . . . . Effects 16 | . . 7 9 Matter Fused 1 | . . . 1 Heat Flow Errors 2 | . . 1 1 Energy Discharges 2 | . . 1 1 Data Loss (major) 2 | . . 1 1 Misfires 1 | . . . 1 Alerts 2 | . . 2 . Misdirections 1 | . . 1 . Targeting Errors 4 | . . 1 3 Weapon Failures 1 | . . . 1 Overload Shots . | . . . . Overflow Damage . | . . . . Projectiles . | . . . . Explosions . | . . . . Melee . | . . . . Knockbacks . | . . . . Impact . | . . . . Kinetic . | . . . . Secondary . | . . . . Self-Inflicted Damage . | . . . . Shots . | . . . . Rammed . | . . . . Targets Rammed . | . . . . Kicked . | . . . . Crushed . | . . . . Highest Temperature 255 | 30 30 255 196 Average Temperature 70 | 17 17 77 80 Received Heat Transfer 140 | . . 60 80 Siege Activations . | . . . . Robots Corrupted 1 | . . 1 . Combat Hostiles 1 | . . 1 . Parts Fried 1 | . . 1 . Impact Corruptions . | . . . . Robots Melted . | . . . . Combat Hostiles . | . . . . Parts Melted . | . . . . Heat Transferred 481 | . 37 370 74 Parts Sabotaged . | . . . . Parts Stolen . | . . . . Parts Stripped . | . . . . Power Chain Reactions . | . . . . Missiles Intercepted . | . . . . Alert | -11 -10 -10 -10 ------- Run | Scr Mat Min Exi Peak Influence 183 | 10 26 183 . Initial 9 | . 6 9 . Average 72 | 5 9 104 . Maximum Alert Level . | . . . . Low Security (%) 100 | 100 100 100 . Level 1 . | . . . . Level 2 . | . . . . Level 3 . | . . . . Level 4 . | . . . . Level 5 . | . . . . High Security . | . . . . Max Security . | . . . . Squads Dispatched 1 | . 1 . . Investigation . | . . . . Extermination . | . . . . Reinforcement 1 | . 1 . . Assault . | . . . . Garrison . | . . . . Intercept . | . . . . Construction Impeded . | . . . . Haulers Reinforced . | . . . . Stealth | -11 -10 -10 -10 --------- Run | Scr Mat Min Exi Distress Signals . | . . . . Communications Jammed . | . . . . Distress Signals . | . . . . Times Spotted 20 | . 4 8 8 Peak Tracking Total 10 | . 3 3 10 Tactical Retreats 2 | . . 2 . Traps | -11 -10 -10 -10 ------- Run | Scr Mat Min Exi Traps Triggered . | . . . . Indirectly . | . . . . Trap Hack Attempts . | . . . . Triggered . | . . . . Disarmed . | . . . . Reprogrammed . | . . . . Reused . | . . . . Traps Extracted . | . . . . Installed . | . . . . Triggered . | . . . . Machines | -11 -10 -10 -10 ---------- Run | Scr Mat Min Exi Machines Disabled 2 | . . 1 1 Max in Single Turn 1 | . . 1 1 Machines Sabotaged . | . . . . Garrisons Compromised . | . . . . Overloaded Fab Kills . | . . . . Fab Network Shutdowns . | . . . . Hacking | -11 -10 -10 -10 --------- Run | Scr Mat Min Exi Machines Accessed . | . . . . Terminals . | . . . . Fabricators . | . . . . Repair Stations . | . . . . Recycling Units . | . . . . Scanalyzers . | . . . . Garrison Access . | . . . . Total Hacks . | . . . . Successful . | . . . . Failed . | . . . . Catastrophic . | . . . . Database Lockouts . | . . . . Manual . | . . . . Terminals . | . . . . Fabricators . | . . . . Repair Stations . | . . . . Recycling Units . | . . . . Scanalyzers . | . . . . Garrison Access . | . . . . Terminal Hacks . | . . . . Fabricator Hacks . | . . . . Repair Station Hacks . | . . . . Recycling Unit Hacks . | . . . . Scanalyzer . | . . . . Garrison Access Hacks . | . . . . Unauthorized Hacks . | . . . . Terminals . | . . . . Fabricators . | . . . . Repair Stations . | . . . . Recycling Units . | . . . . Scanalyzers . | . . . . Garrison Access . | . . . . Data Cores Recovered . | . . . . Used . | . . . . Hacking Detections . | . . . . Full Trace Events . | . . . . Feedback Events . | . . . . Feedback Blocked . | . . . . Robot Schematics Acquired . | . . . . Robots Built . | . . . . Matter . | . . . . Time . | . . . . Total Robot Build Rating . | . . . . Part Schematics Acquired . | . . . . Parts Built . | . . . . Matter . | . . . . Time . | . . . . Total Part Build Rating . | . . . . Parts Repaired . | . . . . Time . | . . . . Parts Recycled . | . . . . Recycled Matter . | . . . . Retrieved Matter . | . . . . Retrieved Components . | . . . . Parts Scanalyzed . | . . . . Part Schematics Acquired . | . . . . Parts Damaged . | . . . . Bothacking | -11 -10 -10 -10 ------------ Run | Scr Mat Min Exi Used RIF Installer . | . . . . Robots Hacked . | . . . . Non-combat . | . . . . Combat . | . . . . Robot Hacks Applied . | . . . . Relay Couplers Released . | . . . . Robots Rewired . | . . . . Allies Hacked . | . . . . Hacks Repelled . | . . . . Allies | -11 -10 -10 -10 -------- Run | Scr Mat Min Exi Total Allies 3 | . . 3 . Largest Group 3 | . . 3 1 Highest-Rated Group 40 | . . 40 16 Highest-Rated Ally 16 | . . 16 16 Total Orders . | . . . . Ally Attacks 18 | . . 15 3 Total Damage 242 | . . 200 42 Kills 5 | . . 5 . Allies Corrupted . | . . . . Allies Melted . | . . . . Intel | -11 -10 -10 -10 ------- Run | Scr Mat Min Exi Robot Analysis Total . | . . . . Derelict Logs Recovered . | . . . . Drone Launches . | . . . . Drone Recoveries . | . . . . Exploration | -11 -10 -10 -10 ------------- Run | Scr Mat Min Exi Turns Passed 644 | 74 99 356 115 Spaces Moved 489 | 57 91 239 102 Core 6 | 6 . . . Treads . | . . . . Legs . | . . . . Wheels 483 | 51 91 239 102 Hover . | . . . . Flight . | . . . . Fastest Speed 50 | 50 100 90 100 Average Speed 99 | 94 100 99 100 Slowest Speed 110 | 100 100 100 110 Overloaded Moves . | . . . . Propulsion Burnouts . | . . . . Robots Hopped . | . . . . Cave-ins Triggered 1 | . . 1 . Exploration Rate (%) 23 | 3 27 37 28 Regions Visited 3 Branch Regions 2 Pre-discovered Areas . | . . . . Known Exits Taken . | . . . . Unknown Exits Taken 3 | 1 1 1 . Scrap Searched 1 | . . 1 . Spaces Dug 3 | . . 3 . Terrain Destroyed 3 | . . 3 . Melee 3 | . . 3 . Projectile . | . . . . AOE . | . . . . Terrain Rammed . | . . . . Walls Destroyed . | . . . . Machines Disabled . | . . . . Actions | -11 -10 -10 -10 --------- Run | Scr Mat Min Exi Total 576 | 69 95 305 107 Wait 22 | . . 21 1 Move 486 | 56 90 238 102 Hop . | . . . . Pick Up 15 | 4 3 8 . Fast Attach 7 | 6 . 1 . Attach 5 | 1 . 4 . Detach . | . . . . Swap 2 | . . 2 . Drop 4 | . . 4 . Fire 26 | 2 2 18 4 Melee 9 | . . 9 . Ram . | . . . . Kick . | . . . . Crush . | . . . . Escape Stasis . | . . . . Rewire . | . . . . Trap . | . . . . Miscellaneous . | . . . . Route ------- -11/Scrapyard -10/Materials -10/Mines -10/Exiles History --------- Turn | Location | Event 37 | -11/Scrapyard | Discovered new exit (range 16) 75 | -11/Scrapyard | Entered Materials 157 | -10/Materials | Discovered new exit (range 12) 174 | -10/Materials | Entered Mines 318 | -10/Mines | Assisted by bots powering up and referring to "LRC-V3" 350 | -10/Mines | Build established: Mutant 433 | -10/Mines | Crushed by falling debris 433 | -10/Mines | System corruption reached 10% 464 | -10/Mines | Lost 4 parts (1n1u2w) 518 | -10/Mines | Deemed a non-threat by the Exiles lab entrance 518 | -10/Mines | Discovered new exit (range 5) 530 | -10/Mines | Entered Exiles 530 | -10/Exiles | Accompanied by 1 ally 565 | -10/Exiles | Met 8R-AWN 579 | -10/Exiles | Met EX-HEX 626 | -10/Exiles | Attacked by the Exiles 637 | -10/Exiles | Core integrity fell below 50% 644 | -10/Exiles | Core integrity fell below 20% 645 | -10/Exiles | Destroyed by as-98874 with Assembled F-torch Last Messages --------------- folks! Machine disabled. System corrupted: Beam Rifle targeting data glitched. as-05011 destroyed. Trooper 1b destroyed. Penetrated by HV Slug. System corrupted: Beam Rifle failed to cycle. HV Slug penetrates Machine. Machine disabled. HV Slug penetrates Machine. Penetrated by HV Slug. Wheel destroyed. System corrupted: EM Pulse Gun targeting data glitched. System corrupted: Beam Rifle targeting data glitched. Penetrated by HV Slug. Beam Rifle destroyed. Penetrated by HV Slug. EM Pulse Gun destroyed. Ion Engine destroyed. Penetrated by HV Slug. Map ----- +----------------------------------------------------+ | ?????????????????????????????????????????????????? | | ?????????????????????????????????????????????????? | | ?????????????????????????????????????????????????? | | ?????????????????????????????????????????????????? | | ?????????????????????????????????????????????????? | | ?????????????????????????????????????????????????? | | ?????????????????????????????????????????????????? | | ?????????????????????????????#???#???????????????? | | ????????????????????? #####"""""""""????????????? | | ??????????????????? " """ """"#??????????? | | ?????????????????? "" " #?????????? | | ?????????????????? " """#?????????? | | ?????????????????? z " "#?????????? | | ??????????????????? " "##????????? | | ???????????????????? ""###??????? | | ????????????????????? """#??????# | | ????????????????????? "#????### | | ?????????????????????#""" ##???# | | ??????????????????????#""" ##?## | | ????? ????????????????#"""" ### | | ????? ??????????????##"" | | ???? #??####???#### " | | ????? ## ####" ! " | | ???? " "" a %= a #""" | | ???? c a % a ##### | | ??? @ a a ##???? | | ???? " ##????? | | ???? " "" """ ""#?????? | | ????? ""## ##""" " " ""#" "##?????? | | ??????? ""#??# ######""" """##"""""""##??????? | | ????????????????# #????###""""###########???????? | | ???????????????## ####???######?????????????????? | | ???????????????#! "!#??????????????????????????? | | ???????????????#" !#??????????????????????????? | | ???????????????#" "#??????????????????????????? | | ???????????????#!!""!"#??????????????????????????? | | ???????????????########??????????????????????????? | | ?????????????????????????????????????????????????? | | ?????????????????????????????????????????????????? | | ?????????????????????????????????????????????????? | | ?????????????????????????????????????????????????? | | ?????????????????????????????????????????????????? | | ?????????????????????????????????????????????????? | | ?????????????????????????????????????????????????? | | ?????????????????????????????????????????????????? | | ?????????????????????????????????????????????????? | | ?????????????????????????????????????????????????? | | ?????????????????????????????????????????????????? | | ?????????????????????????????????????????????????? | | ?????????????????????????????????????????????????? | +----------------------------------------------------+ Best States ------------- Heat Dissipation 25 Energy Generation 10 Energy Capacity 250 Matter Stores 300 Matter Capacity 300 Sight Range 16 Terrain Scan Range 16 Terrain Scan Density 10 Evasion (%) 42 Targeting Accuracy 5 Item Schematics ----------------- None Robot Schematics ------------------ None Fabricated ------------ Nothing Alien Tech Used ----------------- None Achievements -------------- None Challenges ------------ None Game ------ Seed AntimissileSurveybotCore Manual? 0 Play Time 00:09:53 Cumulative 67.5 hours Start 2022.03.15 @ 21:37:10 End 2022.03.15 @ 21:45:57 Sessions 1 Manual Loads 0 Difficulty Rogue Special Mode None Game No. 62 Rogue 52 Adventurer 0 Explorer 10 Win Type - Total 0 Types 0/0/0/0/0/0/0/0/0 Lore% 46 Gallery% 44 Achievement% 30 Wizard Run 0 Options --------- ASCII 0 Keyboard 0 Movement Numpad Keybinds 0 Fullscreen 1 Font 18/SmallcapsGlow Map View 76x50 Tactical HUD 0 Map Filters NONE Filters NONE Steam 1 RUN: a2011ca2-63bf-4ee2-8644-28a576d9bbfe